fUSD/lending_fUSD_20240628
["ID","MTS","AMOUNT","RATE_DAILY","PERIOD"]
[330573692,1719581494280,-500.0,0.00022027,3]
[330573693,1719581494289,-500.0,0.00022027,3]
[330573694,1719581494298,-500.0,0.00022027,3]
[330573695,1719581494308,-649.79,0.00022027,3]
[330573696,1719581494318,-500.0,0.00022027,3]
[330573697,1719581494328,-500.0,0.00022027,3]
[330573698,1719581494337,-500.0,0.00022027,3]
[330573699,1719581494347,-1120.02,0.00022027,3]
[330573700,1719581494356,-1560.26,0.00022027,3]
[330573701,1719581494365,-500.0,0.00022027,3]
[330573702,1719581494374,-598.91,0.00022027,3]
[330573703,1719581494384,-500.0,0.00022027,3]
[330573704,1719581494393,-500.0,0.00022027,3]
[330573705,1719581494403,-1200.47,0.00022027,3]
[330573706,1719581494418,-728.32,0.00022027,3]
[330573707,1719581494427,-5400.35,0.00022027,3]
[330573708,1719581494436,-500.0,0.00022027,3]
[330573709,1719581494445,-500.0,0.00022027,3]
[330573710,1719581494457,-500.0,0.00022027,3]
[330573711,1719581494466,-998.61,0.00022027,3]
[330573712,1719581494475,-500.0,0.00022027,3]
[330573713,1719581494485,-500.0,0.00022027,3]
[330573714,1719581494495,-1334.59,0.00022027,3]
[330573715,1719581494505,-500.0,0.00022027,3]
[330573716,1719581494515,-654.9,0.00022027,3]
[330573717,1719581494524,-1106.63,0.00022027,3]
[330573718,1719581494533,-2113.23,0.00022027,3]
[330573719,1719581494543,-500.0,0.00022027,3]
[330573720,1719581494552,-1151.1,0.00022027,3]
[330573721,1719581494562,-4276.13,0.00022027,3]
[330573722,1719581494574,-500.0,0.00022027,3]
[330573723,1719581494583,-3108.49,0.00022027,3]
[330573724,1719581494603,-539.26,0.00022027,2]
[330573725,1719581494613,-768.64,0.00022027,3]
[330573726,1719581494623,-592.92181606,0.00022027,3]
[330573727,1719581494635,-654.34,0.00022027,3]
[330573728,1719581494648,-3646.44,0.00022027,3]
[330573729,1719581494658,-2939.82,0.00022027,3]
[330573730,1719581494667,-500.0,0.00022027,3]
[330573731,1719581494677,-1859.66,0.00022027,3]
[330573732,1719581494686,-214.1,0.00022027,3]
[330573733,1719581494696,-500.0,0.00022027,3]
[330573734,1719581494706,-9771.66,0.00022027,3]
[330573735,1719581494716,-500.0,0.00022027,3]
[330573736,1719581494726,-500.0,0.00022027,3]
[330573737,1719581494735,-541.59,0.00022027,3]
[330573738,1719581494906,-655.09,0.00022027,3]
[330573739,1719581494916,-1364.96,0.00022027,3]
[330573740,1719581494925,-500.0,0.00022027,3]
[330573741,1719581494934,-1000.0,0.00022027,3]
[330573742,1719581494943,-541.6,0.00022027,3]
[330573743,1719581494952,-1563.36,0.00022027,3]
[330573744,1719581494961,-500.0,0.00022027,3]
[330573745,1719581494970,-2735.37,0.00022027,3]
[330573746,1719581494979,-1103.89,0.00022027,3]
[330573747,1719581494988,-668.34,0.00022027,3]
[330573748,1719581494997,-1059.29,0.00022027,3]
[330573749,1719581495006,-25237.64,0.00022027,3]
[330573750,1719581495015,-636.11,0.00022027,3]
[330573751,1719581495024,-1992.19,0.00022027,3]
[330573752,1719581495033,-500.0,0.00022027,3]
[330573753,1719581495042,-504.83,0.00022027,3]
[330573754,1719581495051,-500.0,0.00022027,3]
[330573755,1719581495061,-1356.54,0.00022027,3]
[330573756,1719581495072,-3359.48,0.00022027,3]
[330573757,1719581495081,-6713.67,0.00022027,3]
[330573758,1719581495092,-523.28,0.00022027,3]
[330573759,1719581495102,-1204.58,0.00022027,3]
[330573760,1719581495112,-796.18,0.00022027,3]
[330573761,1719581495122,-500.0,0.00022027,3]
[330573762,1719581495131,-802.68,0.00022027,3]
[330573763,1719581495140,-21752.02,0.00022027,3]
[330573764,1719581495150,-500.0,0.00022027,3]
[330573765,1719581495159,-500.0,0.00022027,3]
[330573766,1719581495168,-178.17435811,0.00022027,3]
[330573767,1719581495178,-1788.91,0.00022027,3]
[330573768,1719581495187,-500.0,0.00022027,3]
[330573769,1719581495196,-500.0,0.00022027,3]
[330573770,1719581495205,-500.0,0.00022027,3]
[330573771,1719581495214,-500.0,0.00022027,3]
[330573772,1719581495223,-908.57,0.00022027,3]
[330573773,1719581495232,-938.69,0.00022027,3]
[330573774,1719581495241,-500.0,0.00022027,3]
[330573775,1719581495250,-636.84,0.00022027,3]
[330573776,1719581495259,-1580.02,0.00022027,3]
[330573777,1719581495268,-1252.43,0.00022027,3]
[330573778,1719581495277,-500.0,0.00022027,3]
[330573779,1719581495286,-500.0,0.00022027,3]
[330573780,1719581495296,-1312.18,0.00022027,3]
[330573781,1719581495305,-1369.47,0.00022027,3]
[330573782,1719581495313,-500.0,0.00022027,3]
[330573783,1719581495326,-2463.28,0.00022027,3]
[330573784,1719581495335,-36919.91,0.00022027,3]
[330573785,1719581495343,-1025.73,0.00022027,3]
[330573786,1719581495352,-2433.82,0.00022027,3]
[330573787,1719581495361,-646.24,0.00022027,3]
[330573788,1719581495371,-1916.06,0.00022027,3]
[330573789,1719581495381,-887.74,0.00022027,3]
[330573790,1719581495390,-612.6124221,0.00022027,3]
[330573791,1719581495399,-3562.83,0.00022027,3]
[330573792,1719581495409,-500.0,0.00022027,3]
[330573793,1719581495423,-500.0,0.00022027,3]
[330573794,1719581495432,-500.0,0.00022027,3]
[330573795,1719581495441,-500.0,0.00022027,3]
[330573796,1719581495451,-500.0,0.00022027,3]
[330573797,1719581495460,-1329.94,0.00022027,3]
[330573798,1719581495469,-1636.65,0.00022027,3]
[330573799,1719581495478,-4426.91,0.00022027,3]
[330573800,1719581495488,-500.0,0.00022027,3]
[330573801,1719581495501,-978.9,0.00022027,3]
[330573802,1719581495511,-2701.18,0.00022027,3]
[330573803,1719581495520,-517.08,0.00022027,3]
[330573804,1719581495530,-1919.6,0.00022027,3]
[330573805,1719581495539,-500.0,0.00022027,3]
[330573806,1719581495548,-500.0,0.00022027,3]
[330573807,1719581495557,-693.54,0.00022027,3]
[330573808,1719581495569,-500.0,0.00022027,3]
[330573809,1719581495578,-1449.29,0.00022027,3]
[330573810,1719581495588,-500.0,0.00022027,3]
[330573811,1719581495597,-500.0,0.00022027,3]
[330573812,1719581495607,-1102.19,0.00022027,3]
[330573813,1719581495616,-500.0,0.00022027,3]
[330573814,1719581495626,-151.38938733,0.00022027,3]
[330573815,1719581495636,-1430.68,0.00022027,3]
[330573816,1719581495645,-2848.33,0.00022027,3]
[330573817,1719581495654,-1019.91,0.00022027,3]
[330573818,1719581495664,-500.0,0.00022027,3]
[330573819,1719581495674,-1181.56,0.00022027,3]
[330573820,1719581495684,-1282.69,0.00022027,3]
[330573821,1719581495695,-500.0,0.00022027,3]
[330573822,1719581495704,-500.0,0.00022027,3]
[330573823,1719581495713,-266.26619657,0.00022027,3]
[330573824,1719581495723,-1785.99,0.00022027,3]
[330573825,1719581495732,-500.0,0.00022027,3]
[330573826,1719581495742,-5000.33,0.00022027,3]
[330573827,1719581495752,-4271.25,0.00022027,3]
[330573828,1719581495761,-767.84,0.00022027,3]
[330573829,1719581495771,-2193.02,0.00022027,3]
[330573830,1719581495780,-652.49,0.00022027,3]
[330573831,1719581495790,-500.0,0.00022027,3]
[330573832,1719581495800,-3503.06,0.00022027,3]
[330573833,1719581495810,-500.0,0.00022027,3]
[330573834,1719581495822,-500.0,0.00022027,3]
[330573835,1719581495832,-500.0,0.00022027,3]
[330573836,1719581495842,-500.0,0.00022027,3]
[330573837,1719581495851,-500.0,0.00022027,3]
[330573838,1719581495860,-500.0,0.00022027,3]
[330573839,1719581495869,-1274.48,0.00022027,3]
[330573840,1719581495878,-500.0,0.00022027,3]
[330573841,1719581495888,-1581.17,0.00022027,3]
[330573842,1719581495897,-1618.75,0.00022027,3]
[330573843,1719581495906,-996.41,0.00022027,3]
[330573844,1719581495915,-1841.29,0.00022027,3]
[330573845,1719581495925,-500.0,0.00022027,3]
[330573846,1719581495935,-500.0,0.00022027,3]
[330573847,1719581495944,-500.0,0.00022027,3]
[330573848,1719581495953,-500.0,0.00022027,3]
[330573849,1719581495962,-500.0,0.00022027,3]
[330573850,1719581495971,-697.65,0.00022027,3]
[330573851,1719581495979,-1692.25,0.00022027,3]
[330573852,1719581495989,-3537.29,0.00022027,3]
[330573853,1719581495998,-500.0,0.00022027,3]
[330573854,1719581496007,-500.0,0.00022027,3]
[330573855,1719581496016,-500.0,0.00022027,3]
[330573856,1719581496025,-3666.39,0.00022027,3]
[330573857,1719581496034,-684.37,0.00022027,3]
[330573858,1719581496043,-7652.4,0.00022027,3]
[330573859,1719581496053,-1245.71,0.00022027,3]
[330573860,1719581496062,-727.75,0.00022027,3]
[330573861,1719581496074,-500.0,0.00022027,3]
[330573862,1719581496083,-527.84,0.00022027,3]
[330573863,1719581496094,-760.87,0.00022027,3]
[330573864,1719581496104,-1216.62,0.00022027,3]
[330573865,1719581496114,-500.0,0.00022027,3]
[330573866,1719581496123,-792.38,0.00022027,3]
[330573867,1719581496132,-1797.28,0.00022027,3]
[330573868,1719581496142,-500.0,0.00022027,3]
[330573869,1719581496151,-541.45,0.00022027,3]
[330573870,1719581496161,-500.0,0.00022027,3]
[330573871,1719581496170,-500.0,0.00022027,3]
[330573872,1719581496179,-500.0,0.00022027,3]
[330573873,1719581496188,-6246.5,0.00022027,3]
[330573874,1719581496197,-500.0,0.00022027,3]
[330573875,1719581496206,-500.0,0.00022027,3]
[330573876,1719581496215,-1194.1,0.00022027,3]
[330573877,1719581496224,-5615.75,0.00022027,3]
[330573878,1719581496233,-949.96,0.00022027,3]
[330573879,1719581496243,-500.0,0.00022027,3]
[330573880,1719581496251,-2742.28,0.00022027,3]
[330573881,1719581496262,-4369.89,0.00022027,3]
[330573882,1719581496271,-2195.07,0.00022027,3]
[330573883,1719581496280,-500.0,0.00022027,3]
[330573884,1719581496289,-2088.38,0.00022027,3]
[330573885,1719581496298,-500.0,0.00022027,3]
[330573886,1719581496308,-1879.2,0.00022027,3]
[330573887,1719581496321,-3608.45,0.00022027,3]
[330573888,1719581496330,-500.0,0.00022027,3]
[330573889,1719581496339,-500.0,0.00022027,3]
[330573890,1719581496349,-1432.87,0.00022027,3]
[330573891,1719581496359,-832.85,0.00022027,3]
[330573892,1719581496369,-5733.59,0.00022027,3]
[330573893,1719581496379,-1129.35,0.00022027,3]
[330573894,1719581496388,-500.0,0.00022027,3]
[330573895,1719581496397,-1436.46,0.00022027,3]
[330573896,1719581496408,-1538.17,0.00022027,3]
[330573897,1719581496421,-4106.02,0.00022027,3]
[330573898,1719581496432,-1292.24,0.00022027,3]
[330573899,1719581496441,-500.0,0.00022027,3]
[330573900,1719581496453,-1438.55,0.00022027,3]
[330573901,1719581496464,-500.0,0.00022027,3]
[330573902,1719581496474,-500.0,0.00022027,3]
[330573903,1719581496483,-3578.49,0.00022027,3]
[330573904,1719581496496,-500.0,0.00022027,3]
[330573905,1719581496505,-500.0,0.00022027,3]
[330573906,1719581496515,-2567.92,0.00022027,3]
[330573907,1719581496525,-936.48,0.00022027,3]
[330573908,1719581496534,-2949.05,0.00022027,3]
[330573909,1719581496544,-602.03,0.00022027,3]
[330573910,1719581496553,-500.0,0.00022027,3]
[330573911,1719581496562,-1391.57,0.00022027,3]
[330573912,1719581496575,-500.0,0.00022027,3]
[330573913,1719581496585,-500.0,0.00022027,3]
[330573914,1719581496594,-500.0,0.00022027,3]
[330573915,1719581496607,-6037.16,0.00022027,3]
[330573916,1719581496616,-3090.23,0.00022027,3]
[330573917,1719581496625,-521.65,0.00022027,3]
[330573918,1719581496635,-1172.73,0.00022027,3]
[330573919,1719581496644,-1345.72,0.00022027,3]
[330573920,1719581496653,-653.49,0.00022027,3]
[330573921,1719581496663,-518.74,0.00022027,3]
[330573922,1719581496672,-500.0,0.00022027,3]
[330573923,1719581496681,-2152.58,0.00022027,3]
[330573924,1719581496691,-2094.28,0.00022027,3]
[330573925,1719581496701,-1191.41,0.00022027,3]
[330573926,1719581496711,-500.0,0.00022027,3]
[330573927,1719581496721,-899.61,0.00022027,3]
[330573928,1719581496730,-7086.03,0.00022027,3]
[330573929,1719581496740,-500.0,0.00022027,3]
[330573930,1719581496749,-803.71,0.00022027,3]
[330573931,1719581496758,-2168.12,0.00022027,3]
[330573932,1719581496768,-500.0,0.00022027,3]
[330573933,1719581496777,-4219.59,0.00022027,3]
[330573934,1719581496786,-10699.08,0.00022027,3]
[330573935,1719581496795,-500.0,0.00022027,3]
[330573936,1719581496805,-4714.4,0.00022027,3]
[330573937,1719581496814,-1834.2,0.00022027,3]
[330573938,1719581496828,-1919.85,0.00022027,3]
[330573939,1719581496838,-1504.71,0.00022027,3]
[330573940,1719581496847,-1158.28,0.00022027,3]
[330573941,1719581496855,-1215.12,0.00022027,3]
[330573942,1719581496864,-500.0,0.00022027,3]
[330573943,1719581496873,-500.0,0.00022027,3]
[330573944,1719581496883,-4704.3,0.00022027,3]
[330573945,1719581496891,-500.0,0.00022027,3]
[330573946,1719581496901,-2086.55,0.00022027,3]
[330573947,1719581496911,-500.0,0.00022027,3]
[330573948,1719581496921,-2978.02,0.00022027,3]
[330573949,1719581496930,-500.0,0.00022027,3]
[330573950,1719581496939,-2920.68,0.00022027,3]
[330573951,1719581496949,-1218.92,0.00022027,3]
[330573952,1719581496958,-647.51,0.00022027,3]
[330573953,1719581496968,-922.33,0.00022027,3]
[330573954,1719581496977,-662.35,0.00022027,3]
[330573955,1719581496986,-500.0,0.00022027,3]
[330573956,1719581496995,-642.07,0.00022027,3]
[330573957,1719581497004,-1519.66,0.00022027,3]
[330573958,1719581497013,-914.28,0.00022027,3]
[330573959,1719581497022,-2983.21,0.00022027,3]
[330573960,1719581497031,-1264.93,0.00022027,3]
[330573961,1719581497041,-500.0,0.00022027,3]
[330573962,1719581497050,-1929.5,0.00022027,3]
[330573963,1719581497059,-1030.03,0.00022027,3]
[330573964,1719581497069,-2178.19,0.00022027,3]
[330573965,1719581497078,-5319.8,0.00022027,3]
[330573966,1719581497089,-4628.83,0.00022027,3]
[330573967,1719581497099,-500.0,0.00022027,3]
[330573968,1719581497108,-500.0,0.00022027,3]
[330573969,1719581497118,-500.0,0.00022027,3]
[330573970,1719581497127,-500.0,0.00022027,3]
[330573971,1719581497137,-93892.23,0.00022027,3]
[330573972,1719581497146,-4310.82,0.00022027,3]
[330573973,1719581497155,-500.0,0.00022027,3]
[330573974,1719581497164,-566.22,0.00022027,3]
[330573975,1719581497174,-1460.26,0.00022027,3]
[330573976,1719581497183,-1849.37,0.00022027,3]
[330573977,1719581497192,-251.11,0.00022027,7]
[330573978,1719581497201,-500.0,0.00022027,2]
[330573979,1719581497211,-500.0,0.00022027,3]
[330573980,1719581497220,-500.0,0.00022027,3]
[330573981,1719581497229,-16414.95,0.00022027,3]
[330573982,1719581497238,-2405.17,0.00022027,3]
[330573983,1719581497248,-583.96,0.00022027,3]
[330573984,1719581497257,-500.0,0.00022027,3]
[330573985,1719581497266,-500.0,0.00022027,3]
[330573986,1719581497276,-229.99645035,0.00022027,3]
[330573987,1719581497286,-1544.52,0.00022027,3]
[330573988,1719581497295,-500.0,0.00022027,3]
[330573989,1719581497304,-500.0,0.00022027,3]
[330573990,1719581497314,-1841.1,0.00022027,3]
[330573991,1719581497326,-500.0,0.00022027,3]
[330573992,1719581497335,-808.69,0.00022027,3]
[330573993,1719581497344,-500.0,0.00022027,3]
[330573994,1719581497353,-559.42,0.00022027,3]
[330573995,1719581497363,-785.91,0.00022027,3]
[330573996,1719581497372,-215.71989949,0.00022027,3]
[330573997,1719581497381,-500.0,0.00022027,3]
[330573998,1719581497391,-538.09,0.00022027,3]
[330573999,1719581497400,-3690.59,0.00022027,3]
[330574000,1719581497412,-4945.54,0.00022027,3]
[330574001,1719581497423,-500.0,0.00022027,3]
[330574002,1719581497434,-500.0,0.00022027,3]
[330574003,1719581497444,-500.0,0.00022027,3]
[330574004,1719581497455,-5027.37,0.00022027,3]
[330574005,1719581497464,-898.52,0.00022027,3]
[330574006,1719581497474,-1763.07,0.00022027,3]
[330574007,1719581497483,-1768.49,0.00022027,3]
[330574008,1719581497500,-1375.73,0.00022027,3]
[330574009,1719581497511,-500.0,0.00022027,3]
[330574010,1719581497520,-500.0,0.00022027,3]
[330574011,1719581497529,-1778.25,0.00022027,3]
[330574012,1719581497539,-500.0,0.00022027,3]
[330574013,1719581497549,-500.0,0.00022027,3]
[330574014,1719581497558,-1290.1,0.00022027,3]
[330574015,1719581497569,-1517.24,0.00022027,3]
[330574016,1719581497582,-1434.18,0.00022027,3]
[330574017,1719581497591,-500.0,0.00022027,3]
[330574018,1719581497601,-1515.04,0.00022027,3]
[330574019,1719581497610,-2177.82,0.00022027,3]
[330574020,1719581497620,-7466.19,0.00022027,3]
[330574021,1719581497630,-3187.95,0.00022027,3]
[330574022,1719581497639,-4561.78,0.00022027,3]
[330574023,1719581497648,-500.0,0.00022027,3]
[330574024,1719581497658,-3661.99,0.00022027,3]
[330574025,1719581497667,-3137.19,0.00022027,3]
[330574026,1719581497677,-4498.55,0.00022027,3]
[330574027,1719581497686,-500.0,0.00022027,3]
[330574028,1719581497695,-500.0,0.00022027,3]
[330574029,1719581497704,-1040.61,0.00022027,3]
[330574030,1719581497714,-500.0,0.00022027,3]
[330574031,1719581497723,-940.25,0.00022027,3]
[330574032,1719581497732,-4233.18,0.00022027,3]
[330574033,1719581497741,-525.46545711,0.00022027,3]
[330574034,1719581497751,-1668.83,0.00022027,3]
[330574035,1719581497759,-3429.88,0.00022027,3]
[330574036,1719581497769,-14158.63,0.00022027,3]
[330574037,1719581497778,-500.0,0.00022027,3]
[330574038,1719581497787,-500.0,0.00022027,3]
[330574039,1719581497796,-821.69,0.00022027,3]
[330574040,1719581497805,-500.0,0.00022027,3]
[330574041,1719581497815,-783.72,0.00022027,3]
[330574042,1719581497826,-740.83,0.00022027,3]
[330574043,1719581497835,-500.0,0.00022027,3]
[330574044,1719581497845,-565.45,0.00022027,3]
[330574045,1719581497854,-500.0,0.00022027,3]
[330574046,1719581497863,-550.44,0.00022027,3]
[330574047,1719581497873,-3011.43,0.00022027,3]
[330574048,1719581497882,-1552.89,0.00022027,3]
[330574049,1719581497891,-1631.5,0.00022027,3]
[330574050,1719581497901,-1656.5,0.00022027,3]
[330574051,1719581497910,-500.0,0.00022027,3]
[330574052,1719581497920,-500.0,0.00022027,3]
[330574053,1719581497929,-500.0,0.00022027,3]
[330574054,1719581497939,-4506.2,0.00022027,3]
[330574055,1719581497948,-500.0,0.00022027,3]
[330574056,1719581497957,-976.34,0.00022027,3]
[330574057,1719581497966,-2381.26,0.00022027,3]
[330574058,1719581497977,-946.94,0.00022027,3]
[330574059,1719581497986,-500.0,0.00022027,3]
[330574060,1719581497995,-3301.29,0.00022027,3]
[330574061,1719581498004,-500.0,0.00022027,3]
[330574062,1719581498013,-2746.28,0.00022027,3]
[330574063,1719581498022,-1223.71,0.00022027,3]
[330574064,1719581498031,-500.0,0.00022027,3]
[330574065,1719581498040,-1745.26,0.00022027,3]
[330574066,1719581498049,-1350.21,0.00022027,3]
[330574067,1719581498059,-500.0,0.00022027,3]
[330574068,1719581498069,-2747.84,0.00022027,3]
[330574069,1719581498078,-641.43,0.00022027,3]
[330574070,1719581498090,-815.04,0.00022027,3]
[330574071,1719581498100,-1038.84,0.00022027,3]
[330574072,1719581498109,-500.0,0.00022027,3]
[330574073,1719581498119,-712.23,0.00022027,3]
[330574074,1719581498129,-3467.53,0.00022027,3]
[330574075,1719581498139,-936.42,0.00022027,3]
[330574076,1719581498148,-1982.67,0.00022027,3]
[330574077,1719581498157,-5306.68,0.00022027,3]
[330574078,1719581498166,-500.0,0.00022027,3]
[330574079,1719581498175,-500.0,0.00022027,3]
[330574080,1719581498185,-1048.43,0.00022027,3]
[330574081,1719581498194,-357.86772437,0.00022027,3]
[330574082,1719581498203,-1056.31,0.00022027,3]
[330574083,1719581498212,-3242.56,0.00022027,3]
[330574084,1719581498221,-500.0,0.00022027,3]
[330574085,1719581498230,-500.0,0.00022027,3]
[330574086,1719581498242,-1418.66,0.00022027,3]
[330574087,1719581498250,-4937.8,0.00022027,3]
[330574088,1719581498260,-1396.36,0.00022027,3]
[330574089,1719581498269,-500.0,0.00022027,3]
[330574090,1719581498279,-2756.0,0.00022027,3]
[330574091,1719581498288,-3657.11,0.00022027,3]
[330574092,1719581498297,-3297.67,0.00022027,3]
[330574093,1719581498306,-500.0,0.00022027,3]
[330574094,1719581498316,-3075.42,0.00022027,3]
[330574095,1719581498327,-500.0,0.00022027,3]
[330574096,1719581498336,-500.0,0.00022027,3]
[330574097,1719581498346,-500.0,0.00022027,3]
[330574098,1719581498355,-3594.55,0.00022027,3]
[330574099,1719581498365,-1299.94,0.00022027,3]
[330574100,1719581498374,-1421.31,0.00022027,3]
[330574101,1719581498383,-500.0,0.00022027,3]
[330574102,1719581498393,-500.0,0.00022027,3]
[330574103,1719581498402,-5118.96,0.00022027,3]
[330574104,1719581498412,-500.0,0.00022027,3]
[330574105,1719581498425,-500.0,0.00022027,3]
[330574106,1719581498435,-1201.82,0.00022027,3]
[330574107,1719581498444,-1542.67,0.00022027,3]
[330574108,1719581498453,-1294.19,0.00022027,3]
[330574109,1719581498463,-4444.52,0.00022027,3]
[330574110,1719581498472,-500.0,0.00022027,3]
[330574111,1719581498481,-1711.2,0.00022027,3]
[330574112,1719581498490,-1259.38,0.00022027,3]
[330574113,1719581498503,-500.0,0.00022027,3]
[330574114,1719581498514,-500.0,0.00022027,3]
[330574115,1719581498523,-1414.84,0.00022027,3]
[330574116,1719581498533,-500.0,0.00022027,3]
[330574117,1719581498542,-3033.69,0.00022027,3]
[330574118,1719581498552,-1220.0,0.00022027,3]
[330574119,1719581498561,-500.0,0.00022027,3]
[330574120,1719581498573,-968.19,0.00022027,3]
[330574121,1719581498582,-585.45,0.00022027,3]
[330574122,1719581498592,-3606.57,0.00022027,3]
[330574123,1719581498601,-5413.23,0.00022027,3]
[330574124,1719581498610,-500.0,0.00022027,3]
[330574125,1719581498620,-500.0,0.00022027,3]
[330574126,1719581498629,-500.0,0.00022027,3]
[330574127,1719581498639,-500.0,0.00022027,3]
[330574128,1719581498650,-150.0,0.00022031,2]
[330574129,1719581498661,-1485.33680268,0.00022036,2]
[330574130,1719581498680,-716.13847324,0.00022038,2]
[330574131,1719581498690,-6274.87852259,0.00022068,2]
[330574132,1719581498700,-655.64,0.00022081,3]
[330574133,1719581498710,-655.64,0.00022081,3]
[330574134,1719581498719,-655.64,0.00022081,3]
[330574135,1719581498729,-655.64,0.00022081,3]
[330574136,1719581498738,-655.78202854,0.00022081,3]
[330574137,1719581498747,-150.0,0.00022081,7]
[330574138,1719581498757,-152.073045,0.00022081,7]
[330574139,1719581498766,-176.17545837,0.00022081,10]
[330574140,1719581498775,-500.0,0.00022082,3]
[330574141,1719581498784,-500.0,0.00022082,3]
[330574142,1719581498794,-500.0,0.00022082,3]
[330574143,1719581498803,-500.0,0.00022082,3]
[330574144,1719581498813,-499.44518946,0.00022082,3]
[330574145,1719581498825,-500.0,0.00022082,3]
[330574146,1719581498834,-500.0,0.00022082,3]
[330574147,1719581498843,-548.61,0.00022082,3]
[330574148,1719581498853,-500.0,0.00022082,3]
[330574149,1719581498862,-783.65,0.00022082,3]
[330574150,1719581498872,-500.0,0.00022082,3]
[330574151,1719581498881,-850.9,0.00022082,3]
[330574152,1719581498890,-514.0,0.00022082,3]
[330574153,1719581498900,-500.0,0.00022082,3]
[330574154,1719581498910,-266.74011367,0.00022082,3]
[330574155,1719581498919,-500.0,0.00022082,3]
[330574156,1719581498929,-699.06,0.00022082,3]
[330574157,1719581498938,-1048.4,0.00022082,3]
[330574158,1719581498947,-500.0,0.00022082,3]
[330574159,1719581498957,-1001.0,0.00022082,3]
[330574160,1719581498966,-1000.42,0.00022082,3]
[330574161,1719581498975,-891.89,0.00022082,3]
[330574162,1719581498985,-681.81,0.00022082,3]
[330574163,1719581499189,-500.0,0.00022082,3]
[330574164,1719581499199,-500.0,0.00022082,3]
[330574165,1719581499209,-500.0,0.00022082,3]
[330574166,1719581499219,-966.81,0.00022082,3]
[330574167,1719581499228,-500.0,0.00022082,3]
[330574168,1719581499238,-500.0,0.00022082,3]
[330574169,1719581499248,-525.77,0.00022082,3]
[330574170,1719581499258,-533.53781591,0.00022082,3]
[330574171,1719581499267,-500.0,0.00022082,3]
[330574172,1719581499277,-1387.96,0.00022082,3]
[330574173,1719581499287,-500.0,0.00022082,3]
[330574174,1719581499297,-500.0,0.00022082,3]
[330574175,1719581499306,-666.31,0.00022082,3]
[330574176,1719581499316,-500.0,0.00022082,3]
[330574177,1719581499327,-1442.81,0.00022082,3]
[330574178,1719581499337,-1243.8,0.00022082,3]
[330574179,1719581499347,-682.07,0.00022082,3]
[330574180,1719581499357,-520.71,0.00022082,3]
[330574181,1719581499367,-396.61037294,0.00022082,3]
[330574182,1719581499378,-1362.6,0.00022082,3]
[330574183,1719581499388,-500.0,0.00022082,3]
[330574184,1719581499399,-500.0,0.00022082,3]
[330574185,1719581499409,-1234.87,0.00022082,3]
[330574186,1719581499423,-500.0,0.00022082,3]
[330574187,1719581499432,-1123.19,0.00022082,3]
[330574188,1719581499442,-500.0,0.00022082,3]
[330574189,1719581499452,-500.0,0.00022082,3]
[330574190,1719581499463,-565.31,0.00022082,3]
[330574191,1719581499472,-500.0,0.00022082,3]